[Event "31st Kavala Open-A 2022"]
[Site "Kavala"]
[Date "2022.07.30"]
[Round "6.5"]
[White "Markidis, Konstantinos"]
[Black "Schroeder, Jan-Christian"]
[Result "0-1"]
[ECO "C96"]
[WhiteElo "2259"]
[BlackElo "2563"]
[Annotator "TA"]
[PlyCount "70"]
[EventDate "2022.07.27"]
[EventType "swiss"]
[EventCountry "GRE"]
[SourceTitle "playchess.com"]
[Source "ChessBase"]
[SourceQuality "1"]
[TimeControl "40/5400+30:1800+30"]

{[%evp 22,70,31,10,18,4,7,12,10,6,14,0,20,0,0,0,32,16,27,6,35,43,62,26,28,23,28,28,28,24,28,0,0,0,0,0,89,-50,-85,-200,-197,-194,-191,-440,-429,-510,-490,-495,-507,-927,-908]} 1. e4 {[%emt 0:02:15]} e5 {[%emt 0:00:05]} 2. Nf3 {[%emt 0:01:11]} Nc6 {[%emt 0:00:03]} 3. Bb5 {[%emt 0:00:14]} a6 {[%emt 0:00:04]} 4. Ba4 {[%emt 0:00:06]} Nf6 {[%emt 0:00:06]} 5. O-O {[%emt 0:00:26]} Be7 {[%emt 0:00:03]} 6. Re1 {[%emt 0:00:26]} b5 {[%emt 0:00:05]} 7. Bb3 {[%emt 0:00:07]} d6 {[%emt 0:00:03]} 8. c3 {[%emt 0:00:13]} O-O {[%emt 0:00:07]} 9. h3 {[%emt 0:00:18]} Na5 {[%emt 0:00:08]} 10. Bc2 {[%emt 0:00:08]} c5 {[%emt 0:00:03]} 11. d4 {[%emt 0:00:08]} Nd7 {[%emt 0:00:04]} 12. d5 {[%emt 0:00:52]} Nb6 {[%emt 0:01:13] C96: Closed Ruy Lopez: Chigorin Defence: 11 d4, replies other than 11...Qc7.} 13. b3 {[%emt 0:07:49][%cal Bb2b3,Bb3b4][%mdl 32]} Bd7 {[%emt 0:01:17]} 14. Nbd2 {[%emt 0:07:18][%cal Bb1d2,Bd2f1,Bf1e3,Be3f5][%mdl 32]} Qc7 {[%emt 0:00:20] The position is equal.} 15. Nf1 {[%emt 0:00:38]} Rfc8 $5 {[%emt 0:00:49][%mdl 4] [#] An interesting side line.} 16. Ne3 $146 {[%emt 0:02:49]} ({Predecessor:} 16. Be3 Nb7 17. Ng3 a5 18. Nd2 c4 19. bxc4 Nxc4 20. Nxc4 Qxc4 21. Bd3 Qxc3 22. Nf5 {½-½ (42) Morcin,T (2173)-Nowak,I (2224) LSS email 2019}) 16... c4 {[%emt 0:02:35]} 17. b4 $1 {[%emt 0:05:40]} Nb7 {[%emt 0:00:05]} 18. Nf5 {[%emt 0:00:33]} Bf8 {[%emt 0:06:54]} (18... Bxf5 $5 19. exf5 a5 $15) 19. N3h4 {[%emt 0:01:51]} Kh8 {[%emt 0:12:17]} 20. Re3 {[%emt 0:00:39]} Be8 {[%emt 0:20:21]} 21. Rg3 {[%emt 0:02:00]} f6 $1 {[%emt 0:03:45]} 22. Qg4 {[%emt 0:10:55][%cal Oc1h6]} (22. Be3 $5 {[%cal Rf5g7]}) 22... Qf7 {[%emt 0:01:23]} 23. Be3 $36 {[%emt 0:07:31][%mdl 2048] Black is under pressure.} Na4 {[%emt 0:03:19]} 24. Bxa4 {[%emt 0:01:08]} bxa4 {[%emt 0:00:02]} 25. Qe2 {[%emt 0:07:54]} Bd7 {[%emt 0:04:24]} 26. Qd2 {[%emt 0:03:31]} a5 {[%emt 0:01:52]} 27. Rb1 {[%emt 0:02:24]} Rab8 {[%emt 0:06:12]} 28. Ba7 {[%emt 0:02:12]} Nc5 {[%emt 0:04:21]} 29. Qc2 {[%emt 0:00:47]} ({Better is} 29. Bxb8 $16 Nxe4 {[#]} 30. Rxg7 $1 Bxg7 31. Qe1 Nxc3 32. Qxc3 Rxb8 33. Qxc4) 29... axb4 $15 {[%emt 0:07:50]} 30. Rxb4 {[%emt 0:01:42]} ({Wrong is} 30. Bxb8 $2 b3 31. Qe2 (31. Nxd6 $2 Bxd6 32. Qc1 Bxb8 $19) (31. axb3 $2 cxb3 32. Qb2 Rxb8 $19) 31... Rxb8 32. Qxc4 Bb5 $19) (30. cxb4 $17 {was worth a try.} Bxf5 31. bxc5 Rxb1+ 32. Qxb1 Qxa7 33. Nxf5) 30... Rxb4 $19 {[%emt 0:01:59]} 31. cxb4 {[%emt 0:02:23][%cal Og3g7] [#] Hoping for Rxg7!} Nd3 {[%emt 0:03:08]} 32. a3 $2 {[%emt 0:01:42]} (32. b5 g5 33. b6 gxh4 34. Nxh4) 32... g5 {[%emt 0:02:33] Black is clearly winning.} ({Stronger than} 32... Bxf5 33. Nxf5 g6 34. Rxd3 gxf5 35. Be3 fxe4 36. Rd1 $17) 33. Nf3 {[%emt 0:08:06]} Bxf5 {[%emt 0:01:21]} 34. exf5 {[%emt 0:00:20]} Qxa7 {[%emt 0:00:58]} 35. h4 {[%emt 0:00:42]} (35. Nxg5 $142 fxg5 36. Rxd3) 35... e4 {[%emt 0:02:18] Weighted Error Value: White=0.60/Black=0.10 (very precise)} 0-1

[Event "31st Kavala Open-A 2022"]
[Site "Kavala"]
[Date "2022.07.30"]
[Round "6.6"]
[White "Gagare, Shardul"]
[Black "Levin, Guy"]
[Result "1/2-1/2"]
[ECO "B51"]
[WhiteElo "2514"]
[BlackElo "2363"]
[Annotator "TA"]
[PlyCount "76"]
[EventDate "2022.07.27"]
[EventType "swiss"]
[EventCountry "GRE"]
[SourceTitle "playchess.com"]
[Source "ChessBase"]
[SourceQuality "1"]
[TimeControl "40/5400+30:1800+30"]

{[%evp 9,76,23,32,32,58,60,51,58,52,28,45,63,53,43,45,34,57,37,32,36,38,43,37,31,35,22,38,14,27,15,29,7,18,-15,-15,-15,-15,-15,-9,-10,-13,-20,-16,-21,-18,-19,0,-18,0,0,32,-7,0,-36,-28,-41,-12,-47,0,-41,-41,-46,-11,-31,-40,-79,-79,-79,-79]} 1. e4 {[%emt 0:03:22]} c5 {[%emt 0:00:07]} 2. Nf3 {[%emt 0:00:04]} Nc6 {[%emt 0:00:08]} 3. Bb5 {[%emt 0:00:05]} g6 {[%emt 0:00:04]} 4. Bxc6 {[%emt 0:00:35]} bxc6 {[%emt 0:00:08]} 5. O-O {[%emt 0:00:16]} d6 {[%emt 0:01:54]} 6. e5 {[%emt 0:10:17] B51: Sicilian: Moscow Variation (3 Bb5+) without 3...Bd7.} dxe5 {[%emt 0:15:51]} 7. Nxe5 {[%emt 0:00:14]} Bg7 {[%emt 0:00:07]} 8. Re1 {[%emt 0:01:02] White is slightly better.} Qc7 {[%emt 0:01:08]} 9. d4 {[%emt 0:18:10] [#]} Be6 $146 {[%emt 0:19:04]} ({Predecessor:} 9... cxd4 10. Qxd4 Nf6 11. Nc3 Be6 12. Qc5 Rc8 13. Bf4 Qb7 14. Na4 O-O 15. Qa3 Qa6 {½-½ (60) Caruana,F (2795)-Kamsky,G (2678) Saint Louis 2016}) 10. Bf4 {[%emt 0:03:35][%cal Oe5g6,Bc1f4,Bf4g3,Bg3e5][%mdl 32]} Qb6 {[%emt 0:02:22][%csl LRb2,LRd4]} 11. dxc5 {[%emt 0:02:13]} Qxb2 {[%emt 0:08:28]} 12. Nd2 {[%emt 0:05:25][%cal Bb1d2,Bd2b3,Bb3a5][%mdl 32]} Qd4 {[%emt 0:01:53]} 13. Bg3 {[%emt 0:28:38] Strongly threatening Qe2.} (13. g3 $5 {[%cal Rc2c4]}) 13... Nh6 {[%emt 0:26:40]} 14. Nb3 {[%emt 0:12:29] Pair of Knights!} Qxd1 {[%emt 0:00:07]} 15. Raxd1 {[%emt 0:00:16]} Bxe5 {[%emt 0:00:06]} 16. Bxe5 {[%emt 0:00:28]} O-O {[%emt 0:00:02]} 17. Na5 {[%emt 0:01:39]} Rac8 {[%emt 0:01:06]} 18. h3 {[%emt 0:03:20]} Nf5 {[%emt 0:01:09]} 19. a4 {[%emt 0:02:59]} h5 {[%emt 0:09:36]} 20. Rb1 {[%emt 0:02:22]} Rfd8 {[%emt 0:03:44]} 21. Red1 {[%emt 0:01:09]} Rxd1+ {[%emt 0:02:03]} 22. Rxd1 {[%emt 0:00:01][%cal Oa5c6]} f6 {[%emt 0:00:10]} 23. Bh2 {[%emt 0:01:08]} Kf7 {[%emt 0:00:45]} 24. c3 {[%emt 0:01:24]} Bd5 {[%emt 0:02:33]} 25. Rb1 {[%emt 0:01:13]} Be4 {[%emt 0:01:00]} 26. Rb4 {[%emt 0:00:16]} Bc2 {[%emt 0:01:20]} 27. Bb8 {[%emt 0:00:44]} a6 {[%emt 0:00:47]} 28. Ba7 {[%emt 0:00:31]} e5 {[%emt 0:01:04]} 29. Bb6 {[%emt 0:00:31]} Ne7 {[%emt 0:00:39]} 30. Nc4 {[%emt 0:00:25] [#] Nd6+ is the strong threat.} (30. Rb2 $5 {[%cal Rb2c2]} Bxa4 31. Ra2 $11) 30... Ke6 {[%emt 0:00:01]} 31. Nd6 {[%emt 0:00:37]} Rb8 {[%emt 0:00:05] White must now prevent ...Nd5.} 32. a5 {[%emt 0:00:21]} Nf5 {[%emt 0:00:53]} 33. Nc4 {[%emt 0:00:35]} Ne7 {[%emt 0:00:37]} (33... Rb7 $15) 34. Rb2 {[%emt 0:00:32]} Bd3 {[%emt 0:00:11]} 35. Nd6 {[%emt 0:00:23]} Nf5 {[%emt 0:00:19]} (35... Nd5 $5 {[%cal Rd5c3]}) 36. Rd2 {[%emt 0:00:36]} e4 {[%emt 0:00:08]} 37. Nxf5 {[%emt 0:00:33]} gxf5 {[%emt 0:01:13]} 38. Rb2 {[%emt 0:00:06]} Rb7 {[%emt 0:01:03] Weighted Error Value: White=0.13 (very precise) /Black=0.07 (flawless)} 1/2-1/2

[Event "31st Kavala Open-A 2022"]
[Site "Kavala"]
[Date "2022.07.30"]
[Round "6.7"]
[White "Beerdsen, Thomas"]
[Black "Kalogridis, Antonios"]
[Result "1-0"]
[ECO "B12"]
[WhiteElo "2500"]
[BlackElo "2272"]
[Annotator "TA"]
[PlyCount "69"]
[EventDate "2022.07.27"]
[EventType "swiss"]
[EventCountry "GRE"]
[SourceTitle "playchess.com"]
[Source "ChessBase"]
[SourceQuality "1"]
[TimeControl "40/5400+30:1800+30"]

{[%evp 9,69,18,0,-25,-18,-27,-20,-33,-2,0,0,0,0,0,0,0,0,0,0,-15,11,0,0,7,27,0,77,72,82,83,95,71,64,71,85,79,343,383,362,376,359,270,269,278,258,252,252,249,312,309,314,299,332,318,329,322,477,479,470,463,467,456]} 1. e4 {[%emt 0:00:03]} c6 {[%emt 0:00:02]} 2. d4 {[%emt 0:00:06]} d5 {[%emt 0:00:02]} 3. e5 {[%emt 0:00:06]} Bf5 {[%emt 0:00:02]} 4. g4 {[%emt 0:00:07]} Be4 {[%emt 0:00:04]} 5. f3 {[%emt 0:00:05]} Bg6 {[%emt 0:00:03]} 6. e6 {[%emt 0:00:06] B12: Caro-Kann: Advance Variation.} fxe6 {[%emt 0:00:09][%cal Oe6e5]} 7. h4 {[%emt 0:00:08]} h5 {[%emt 0:00:05]} 8. Bd3 {[%emt 0:00:14] The position is equal.} Bxd3 {[%emt 0:00:19]} 9. Qxd3 {[%emt 0:00:07]} Qd6 {[%emt 0:00:10] Against Bf4} 10. Ne2 {[%emt 0:00:53] [#] Hoping for Bf4. Active counter play!} Nd7 {[%emt 0:00:04]} 11. Bf4 {[%emt 0:00:52]} e5 {[%emt 0:00:03]} 12. dxe5 {[%emt 0:00:07]} Nxe5 {[%emt 0:00:02]} 13. Qc3 {[%emt 0:00:42]} d4 $1 {[%emt 0:00:05]} 14. Qb3 {[%emt 0:00:07] [#] Threatens to win with Na3.} hxg4 $146 {[%emt 0:08:54]} ({Predecessor:} 14... O-O-O 15. Nd2 hxg4 16. O-O-O Qd5 17. Bxe5 Qxe5 18. Rhe1 Qd5 19. Qxd5 Rxd5 20. Nf4 Rf5 {½-½ (76) Shukhman,A (2042)-Protopopova,A (2257) Cheliabinsk 2021}) 15. Bxe5 {[%emt 0:13:10]} Qxe5 {[%emt 0:00:16]} 16. Qxb7 {[%emt 0:00:09]} Rd8 {[%emt 0:04:32] White must now prevent ...Rh6.} 17. Qxc6+ {[%emt 0:00:57]} Kf7 {[%emt 0:00:13]} (17... Rd7 $1 $11 {keeps the balance.}) 18. Nd2 {[%emt 0:13:13]} g5 {[%emt 0:22:46]} 19. fxg4 {[%emt 0:11:44] aiming for Nf3.} Rxh4 {[%emt 0:05:27]} 20. Rxh4 {[%emt 0:14:56]} gxh4 {[%emt 0:00:08]} 21. Nf3 $40 {[%emt 0:00:35][%csl LRe5,LRh4][%mdl 128] White attacks with force.} Qa5+ {[%emt 0:05:14]} 22. Kf1 {[%emt 0:05:13]} Bg7 {[%emt 0:07:59][%mdl 8192] [#] Loses the game.} (22... Rd6 $16 {might work better.} 23. Qc8 d3 24. Qc4+ Qd5 25. Qxd5+ Rxd5) 23. Nf4 $1 $18 {[%emt 0:03:04] White threatens Qg6+ and mate.} (23. Nxh4 Qg5 24. Qc4+ Qd5 25. Qxd5+ Rxd5 $14) 23... Rd6 {[%emt 0:06:49] Against Qg6+} 24. Qc4+ {[%emt 0:00:17]} e6 {[%emt 0:01:46]} 25. Nxe6 {[%emt 0:06:21] Pair of Knights!} Qa6 {[%emt 0:00:32]} (25... Rxe6 $2 26. Re1 Qxe1+ 27. Nxe1 $18) 26. Qxa6 {[%emt 0:00:20] Really sharp!} (26. Nfg5+ Kg6 27. Qxa6 Rxa6 $16) 26... Rxa6 {[%emt 0:00:06]} 27. Nxg7 {[%emt 0:00:21]} ({Weaker is} 27. Nfxd4 Rxe6 28. Nxe6 Kxe6 $14) (27. Nexd4 Rg6 $16) 27... Kxg7 {[%emt 0:00:12]} 28. Nxh4 {[%emt 0:01:17][%mdl 4096] Endgame KRN-KRN} ({Resist} 28. Nxd4 $6 Nh6 29. Kg2 Nxg4 $16) 28... Ne7 {[%emt 0:00:28]} 29. Nf3 {[%emt 0:03:48]} Rg6 {[%emt 0:01:28]} 30. Re1 {[%emt 0:02:35]} ({Much less strong is} 30. Nxd4 Rxg4 31. Re1 Kf7 $18) 30... Nd5 {[%emt 0:00:41]} 31. Nxd4 {[%emt 0:00:22]} Rxg4 {[%emt 0:00:12]} 32. c3 {[%emt 0:02:44]} Kf6 {[%emt 0:00:31]} (32... Rg6 $142 33. c4 Nf4 34. Re7+ Kf6) 33. Re6+ {[%emt 0:00:07] White is clearly winning.} Kf7 {[%emt 0:00:06][%cal Og4d4]} 34. Ra6 {[%emt 0:00:19]} Ne3+ {[%emt 0:00:05]} 35. Ke2 {[%emt 0:00:14] Weighted Error Value: White=0.06 (flawless) /Black=0.31} 1-0

[Event "31st Kavala Open-A 2022"]
[Site "Kavala"]
[Date "2022.07.30"]
[Round "6.8"]
[White "Kanakaris, Georgios"]
[Black "Vrolijk, Liam"]
[Result "1/2-1/2"]
[ECO "D73"]
[WhiteElo "2389"]
[BlackElo "2464"]
[Annotator "TA"]
[PlyCount "43"]
[EventDate "2022.07.27"]
[EventType "swiss"]
[EventCountry "GRE"]
[SourceTitle "playchess.com"]
[Source "ChessBase"]
[SourceQuality "1"]
[TimeControl "40/5400+30:1800+30"]

{[%evp 16,43,0,-8,0,0,23,12,22,0,0,0,9,0,0,0,0,0,0,-2,-2,-1,-1,-2,-2,-3,-6,-6,-2,0]} 1. Nf3 {[%emt 0:00:04]} d5 {[%emt 0:02:07]} 2. g3 {[%emt 0:00:30]} Nf6 {[%emt 0:00:50][%cal Bg8f6,Bf6d5,Bd5b4][%mdl 32]} 3. Bg2 {[%emt 0:00:26]} c5 {[%emt 0:00:23]} 4. c4 {[%emt 0:00:51]} g6 {[%emt 0:03:43]} 5. O-O {[%emt 0:01:32]} Bg7 {[%emt 0:00:13]} 6. cxd5 {[%emt 0:03:48]} Nxd5 {[%emt 0:00:29]} 7. d4 {[%emt 0:00:45]} cxd4 {[%emt 0:00:51]} 8. Nxd4 {[%emt 0:00:08]} O-O {[%emt 0:00:07]} 9. Na3 {[%emt 0:10:37]} Nb4 {[%emt 0:05:00] D73: Fianchetto Grünfeld: 5 Nf3 .} 10. Be3 {[%emt 0:01:03]} N8c6 {[%emt 0:04:35]} 11. Nxc6 {[%emt 0:02:00]} Nxc6 {[%emt 0:00:08] [#] The position is equal.} 12. Nc4 $146 {[%emt 0:19:38]} ({Predecessor:} 12. Qc1 Be6 13. Rd1 Qa5 14. Bxc6 bxc6 15. Bd4 Bxd4 16. Rxd4 Rfd8 17. Nc4 Qb5 18. Rxd8+ Rxd8 {½-½ (45) Ivanchuk,V (2678)-Sethuraman,S (2644) chess24.com INT 2020}) 12... Bg4 {[%emt 0:05:21]} 13. Bxc6 {[%emt 0:09:54]} bxc6 {[%emt 0:00:37]} 14. Qxd8 {[%emt 0:00:06]} Rfxd8 {[%emt 0:00:53]} 15. f3 {[%emt 0:00:05]} Be6 {[%emt 0:02:03] This bishop pair is nice.} 16. Rac1 {[%emt 0:00:05]} a5 {[%emt 0:05:32]} 17. b3 {[%emt 0:05:53]} a4 {[%emt 0:02:17]} 18. Nb6 {[%emt 0:03:05][%cal Bc4b6,Bb6a8,Ba8c7][%mdl 32]} axb3 {[%emt 0:00:20]} 19. Nxa8 {[%emt 0:00:06][%cal Oa2b3] [#] axb3! is the strong threat.} b2 {[%emt 0:00:25]} 20. Nc7 {[%emt 0:06:28] Threatens to win with Rcd1.} bxc1=Q {[%emt 0:01:05]} 21. Rxc1 {[%emt 0:00:06]} Bxa2 {[%emt 0:00:14]} 22. Rxc6 {[%emt 0:00:18] An even fight not without its subleties.  Weighted Error Value: White=0.04 (flawless) /Black=0.03 (flawless)} 1/2-1/2

[Event "31st Kavala Open-A 2022"]
[Site "Kavala"]
[Date "2022.07.30"]
[Round "6.9"]
[White "Pijpers, Arthur"]
[Black "Ladopoulos, Dimitrios"]
[Result "1/2-1/2"]
[ECO "C11"]
[WhiteElo "2458"]
[BlackElo "2335"]
[Annotator "TA"]
[PlyCount "154"]
[EventDate "2022.07.27"]
[EventType "swiss"]
[EventCountry "GRE"]
[SourceTitle "playchess.com"]
[Source "ChessBase"]
[SourceQuality "1"]
[TimeControl "40/5400+30:1800+30"]

{[%evp 20,154,0,11,23,14,35,22,18,24,21,23,15,8,15,19,41,45,49,52,57,30,87,14,41,0,80,0,52,40,73,74,71,0,75,66,91,17,32,29,20,0,3,8,27,25,51,45,46,45,41,27,30,0,0,0,0,0,0,0,55,56,52,51,58,47,236,223,227,223,326,300,281,177,154,139,139,129,138,100,137,167,160,154,146,132,141,137,150,12,13,12,151,0,8,0,0,0,0,0,0,0,0,0,0,0,0,0,0,0,0,0,0,0,0,0,0,0,0,0,0,0,0,0,0,0,0,0,0,0,0,0,0,0,0,0,0]} 1. e4 {[%emt 0:00:04]} e6 {[%emt 0:00:46]} 2. d4 {[%emt 0:00:04]} d5 {[%emt 0:00:05]} 3. Nc3 {[%emt 0:00:03]} Nf6 {[%emt 0:01:41]} 4. e5 {[%emt 0:00:06]} Nfd7 {[%emt 0:00:07]} 5. f4 {[%emt 0:00:04]} c5 {[%emt 0:00:05]} 6. Nf3 {[%emt 0:00:04]} Nc6 {[%emt 0:06:30]} 7. Be3 {[%emt 0:00:34]} cxd4 {[%emt 0:00:14]} 8. Nxd4 {[%emt 0:00:06]} Qb6 {[%emt 0:00:49]} 9. Qd2 {[%emt 0:02:31]} Qxb2 {[%emt 0:00:24]} 10. Rb1 {[%emt 0:00:07]} Qa3 {[%emt 0:00:06]} 11. Bb5 {[%emt 0:00:05]} Nxd4 {[%emt 0:09:03] C11: French: Classical System: 4 e5 and 4 Bg5 dxe4.} 12. Bxd4 {[%emt 0:00:40][%cal Of4f5]} (12. Qxd4 a6 13. Bxd7+ Bxd7 14. Rxb7 Rc8 $17) 12... a6 {[%emt 0:01:03]} (12... Bb4 {keeps more tension.} 13. Rb3 Qa5 14. a3 Be7) 13. Bxd7+ {[%emt 0:02:02]} Bxd7 {[%emt 0:00:02]} 14. Rb3 {[%emt 0:00:37]} Qe7 {[%emt 0:00:08]} 15. Rxb7 {[%emt 0:00:07]} Qh4+ $1 {[%emt 0:02:26][%mdl 4] is currently scoring better than 15...Rc8.} 16. Qf2 {[%emt 0:01:43]} Qxf2+ {[%emt 0:16:23]} (16... Be7 {looks sharper.} 17. g3 Qh3 18. Kd2 Bd8) 17. Kxf2 {[%emt 0:00:26]} Bc8 {[%emt 0:00:08]} 18. Rb3 {[%emt 0:28:52]} Be7 {[%emt 0:06:24]} 19. Rhb1 {[%emt 0:21:54] [#]} Bd8 $146 {[%emt 0:11:47]} ({Predecessor:} 19... O-O 20. Na4 a5 21. Nb6 Ra6 22. Rc3 Rxb6 23. Rxb6 f6 24. Rc7 fxe5 25. Bxe5 Bh4+ 26. g3 Bf6 27. Bxf6 gxf6 28. Rbc6 {1-0 (28) Wang,J (2380)-Zhang,X (2374) China 2016}) 20. Bc5 {[%emt 0:05:48]} Bc7 {[%emt 0:08:08]} (20... Bd7 $11 {remains equal.}) 21. Bb6 {[%emt 0:05:52]} ({White should try} 21. Bd6 $16 Ba5 22. Ne2) 21... Bb8 {[%emt 0:00:50]} 22. Bc5 {[%emt 0:04:51]} Bc7 {[%emt 0:00:08]} 23. Bb6 {[%emt 0:00:04]} Bb8 {[%emt 0:00:09]} 24. Ne2 {[%emt 0:00:01]} Rg8 {[%emt 0:17:16]} 25. Bc5 {[%emt 0:13:40]} Bc7 {[%emt 0:00:26]} 26. Bb6 {[%emt 0:00:04]} Bb8 {[%emt 0:00:20]} 27. Nd4 {[%emt 0:04:45]} (27. g3 {with more complications.} g5 28. Rc3 Kd7 29. Ba5) 27... f6 {[%emt 0:09:49]} 28. Re1 {[%emt 0:00:02] White is much more active. The black rooks are badly placed.} (28. Bc5 $16 Bc7 29. Bd6 fxe5 30. Bxe5 (30. Bxc7 exd4 31. Be5 Bd7 $14) (30. fxe5 Bxd6 31. exd6 e5 $16) 30... Bxe5 31. fxe5) 28... fxe5 $11 {[%emt 0:00:29]} 29. fxe5 {[%emt 0:00:02]} Rf8+ {[%emt 0:01:11]} 30. Rf3 {[%emt 0:00:24]} Bd7 {[%emt 0:03:30]} 31. Ree3 {[%emt 0:04:30][%cal Be1e3,Be3b3,Bb3b4,Bb4f4][%mdl 32]} Rxf3+ {[%emt 0:02:24]} 32. gxf3 {[%emt 0:01:53]} Kf7 {[%emt 0:00:50]} 33. f4 {[%emt 0:00:16][%cal Of4f5] Strongly threatening f5!} a5 {[%emt 0:01:48]} 34. Rb3 {[%emt 0:01:44]} a4 {[%emt 0:01:20]} 35. Rb4 {[%emt 0:00:06]} g5 {[%emt 0:00:38]} 36. a3 {[%emt 0:01:23]} gxf4 {[%emt 0:00:24]} 37. Nf3 {[%emt 0:00:02]} Ra6 {[%emt 0:00:37][%cal Oa6b6] Threatens to win with ...Rxb6!} 38. Rxf4+ {[%emt 0:00:15]} Kg8 {[%emt 0:00:30]} 39. Bc5 {[%emt 0:00:55]} Ba7 {[%emt 0:00:28]} ({Better is} 39... Bc7 $1 $11) 40. Bxa7 {[%emt 0:00:00]} Rxa7 $14 {[%emt 0:00:00][%mdl 4096] Endgame KRB-KRN} 41. Ke3 {[%emt 0:10:13]} Rb7 {[%emt 0:03:03]} 42. Kd4 {[%emt 0:00:36]} Rb2 $2 {[%emt 0:07:09]} (42... Rc7 $14) 43. Kc5 $1 $18 {[%emt 0:07:08]} Rxc2+ {[%emt 0:00:30]} 44. Kd6 {[%emt 0:00:01]} Be8 {[%emt 0:05:55]} (44... Bc8 {was necessary.} 45. Rxa4 Kg7) 45. Ke7 {[%emt 0:00:15]} ({Less strong is} 45. Kxe6 Ra2 $16) 45... Bg6 {[%emt 0:03:35]} 46. Rxa4 {[%emt 0:01:04]} Rc4 {[%emt 0:01:19]} 47. Ra8+ {[%emt 0:06:17]} Kg7 {[%emt 0:00:02]} 48. Kxe6 {[%emt 0:00:07]} Rf4 {[%emt 0:04:14]} 49. Nd2 $1 {[%emt 0:01:51]} d4 {[%emt 0:00:46]} 50. Ra4 $1 {[%emt 0:02:43]} Bf7+ {[%emt 0:04:38]} 51. Ke7 {[%emt 0:01:12]} Rf5 {[%emt 0:01:13]} 52. Kd6 {[%emt 0:00:55]} ({Resist} 52. Rxd4 $6 Rxe5+ 53. Kd6 Rh5 $14) 52... d3 {[%emt 0:01:49] [#]} 53. Rd4 $1 {[%emt 0:02:48]} Bg6 {[%emt 0:00:40]} 54. e6 {[%emt 0:01:56]} (54. Rxd3 $16 {Black must now prevent Rf3.} Rf4 55. Rd5) 54... Rf2 $11 {[%emt 0:00:55][%csl LRd2,LRh2]} 55. Nc4 {[%emt 0:01:54]} Re2 {[%emt 0:02:15] [#]} (55... Rxh2 $11 56. a4 Re2) 56. h4 $2 {[%emt 0:01:58]} ({White should play} 56. Ne5 $1 $16 {[%cal Re5g6]} Kf6 57. Nxg6 (57. Nxd3 Rxe6+ 58. Kc5 Re3 $14) 57... Rxe6+ 58. Kc5 hxg6 59. Rxd3 Re5+ 60. Kb4) 56... Bf5 {[%emt 0:00:25] The position is equal.} 57. Ne5 {[%emt 0:00:36] aiming for e7.} (57. e7 {seems wilder.} Kf6 58. Nb6 Re6+ 59. Kc5) 57... Kf6 {[%emt 0:00:02][%csl LRe5,LRe6]} 58. Nd7+ {[%emt 0:00:20]} Kg7 {[%emt 0:00:02]} 59. Ne5 {[%emt 0:00:39] e7 is the strong threat.} Kf6 {[%emt 0:00:30][%csl LRe5,LRe6]} 60. Nxd3 {[%emt 0:00:01] And now Nf4 would win.} Rxe6+ {[%emt 0:00:12]} 61. Kc5 {[%emt 0:00:16]} Re3 $1 {[%emt 0:01:27]} 62. Kc4 {[%emt 0:00:02]} Rh3 {[%emt 0:00:20]} 63. a4 {[%emt 0:00:47]} Bxd3+ {[%emt 0:00:06]} 64. Rxd3 {[%emt 0:00:01]} Rxh4+ {[%emt 0:00:06] KR-KR} 65. Kb5 {[%emt 0:00:05]} Rh1 {[%emt 0:01:18]} 66. a5 {[%emt 0:00:20]} Rb1+ {[%emt 0:00:29]} 67. Kc6 {[%emt 0:00:23]} Rc1+ {[%emt 0:00:44]} 68. Kd6 {[%emt 0:01:08]} Ra1 {[%emt 0:00:16]} 69. Rd5 {[%emt 0:00:04]} Kg6 {[%emt 0:00:05]} 70. Kc7 {[%emt 0:00:25]} h5 {[%emt 0:00:05][%cal Bh7h5,Bh5h4,Bh4h3][%mdl 32]} 71. Kb7 {[%emt 0:00:45] Hoping for a6.} h4 {[%emt 0:01:19]} 72. a6 {[%emt 0:00:04] Threatening mate with a7.} h3 {[%emt 0:00:15]} 73. Rd2 {[%emt 0:00:05]} Kg5 {[%emt 0:00:10]} 74. a7 {[%emt 0:00:04]} Rxa7+ {[%emt 0:00:19]} 75. Kxa7 {[%emt 0:00:05]} Kg4 {[%emt 0:00:05]} 76. Rh2 {[%emt 0:00:04]} Kg3 {[%emt 0:00:04]} 77. Rxh3+ {[%emt 0:00:03]} Kxh3 {[%emt 0:00:35] Blacks defense is rewarded with a draw.  Weighted Error Value: White=0.22 (precise) /Black=0.20 (precise)} 1/2-1/2